fUSD/lending_fUSD_20260305
["ID","MTS","AMOUNT","RATE_DAILY","PERIOD"]
[407713774,1772699440831,-1256.33,0.00016899,2]
[407713775,1772699440841,-1256.33,0.00016899,2]
[407713776,1772699440851,-1256.33,0.00016899,2]
[407713777,1772699440863,-166.65,0.000169,2]
[407713778,1772699440874,-474.65540829,0.000169,2]
[407713779,1772699440888,-2000.0,0.000169,2]
[407713780,1772699440898,-231.35,0.00016964,2]
[407713781,1772699440908,-277.91000131,0.00016973,2]
[407713782,1772699440918,-500.0,0.00016973,2]
[407713783,1772699440927,-164.26698433,0.00016973,2]
[407713785,1772699440937,-317.56153456,0.00016973,2]
[407713786,1772699440946,-500.67382019,0.00016973,2]
[407713788,1772699440956,-500.72168875,0.00016973,2]
[407713789,1772699440965,-500.63657563,0.00016973,2]
[407713791,1772699440975,-501.82148523,0.00016973,2]
[407713792,1772699440985,-500.40971882,0.00016973,2]
[407713794,1772699440995,-502.06109406,0.00016973,2]
[407713796,1772699441005,-500.0,0.00016973,2]
[407713798,1772699441018,-501.29533568,0.00016973,2]
[407713800,1772699441028,-501.03496978,0.00016973,2]
[407713801,1772699441038,-500.45511478,0.00016973,2]
[407713802,1772699441048,-501.37970938,0.00016973,2]
[407713803,1772699441057,-158.67517064,0.00016973,2]
[407713804,1772699441067,-500.68694088,0.00016973,2]
[407713805,1772699441077,-161.28550548,0.00016973,2]
[407713806,1772699441087,-500.93297401,0.00016973,2]
[407713807,1772699441096,-160.23398328,0.00016973,2]
[407713808,1772699441106,-161.77269484,0.00016973,2]
[407713809,1772699441116,-316.88116143,0.00016973,2]
[407713810,1772699441125,-500.84330545,0.00016973,2]
[407713811,1772699441135,-502.37498593,0.00016973,2]
[407713812,1772699441144,-500.96095128,0.00016973,2]
[407713813,1772699441154,-500.70639793,0.00016973,2]
[407713814,1772699441164,-500.6040409,0.00016973,2]
[407713815,1772699441173,-516.64695093,0.00016973,2]
[407713816,1772699441183,-501.0364462,0.00016973,2]
[407713817,1772699441192,-500.83142573,0.00016973,2]
[407713818,1772699441203,-500.30777449,0.00016973,2]
[407713819,1772699441217,-500.0,0.00016973,2]
[407713820,1772699441227,-501.07937522,0.00016973,2]
[407713821,1772699441236,-500.8406382,0.00016973,2]
[407713822,1772699441246,-500.66004421,0.00016973,2]
[407713823,1772699441256,-500.6048629,0.00016973,2]
[407713824,1772699441266,-500.8900569,0.00016973,2]
[407713825,1772699441278,-165.98720503,0.00016973,2]
[407713826,1772699441287,-500.70738406,0.00016973,2]
[407713827,1772699441298,-500.82420992,0.00016973,2]
[407713828,1772699441309,-500.88173687,0.00016973,2]
[407713829,1772699441318,-500.65533715,0.00016973,2]
[407713830,1772699441329,-501.08912633,0.00016973,2]
[407713831,1772699441340,-500.0,0.00016973,2]
[407713832,1772699441351,-600.66664765,0.00016973,2]
[407713833,1772699441363,-582.28,0.00016999,2]
[407713834,1772699441375,-500.0,0.00016999,2]
[407713835,1772699441386,-300.0,0.00017,2]
[407713836,1772699441396,-4000.0,0.00017044,2]
[407713837,1772699441410,-156.87,0.0001706,2]
[407713838,1772699441421,-304.08,0.00017161,2]
[407713839,1772699441431,-200.0,0.00017238,2]
[407713840,1772699441441,-231.35,0.00017238,2]
[407713841,1772699441452,-166.66,0.00017254,2]
[407713842,1772699441463,-1117.62,0.00017305,2]
[407713843,1772699441475,-156.87,0.0001733,2]
[407713844,1772699441485,-250.0,0.00017372,2]
[407713845,1772699441495,-2500.0,0.00017402,2]
[407713846,1772699441504,-2500.0,0.00017402,2]
[407713847,1772699441515,-845.54,0.00017402,2]
[407713848,1772699441525,-4000.0,0.00017441,2]
[407713849,1772699441537,-250.0,0.0001749,2]
[407713850,1772699441547,-500.0,0.00017497,2]
[407713851,1772699441558,-300.0,0.00017497,2]
[407713852,1772699441568,-890.26,0.00017497,2]
[407713853,1772699441579,-231.35,0.00017512,2]
[407713854,1772699441589,-1037.76977486,0.00017521,2]
[407713855,1772699441601,-500.76272962,0.00017521,2]
[407713856,1772699441611,-1050.62118984,0.00017521,2]
[407713857,1772699441620,-156.87,0.000176,2]
[407713858,1772699441630,-5000.0,0.000176,2]
[407713859,1772699441640,-250.0,0.000176,2]
[407713860,1772699441650,-2500.0,0.000176,2]
[407713861,1772699441660,-2500.0,0.000176,2]
[407713862,1772699441670,-2141.8377778,0.000176,2]
[407713863,1772699441679,-935.0,0.00017621,2]
[407713864,1772699441690,-200.0,0.00017786,2]
[407713865,1772699441700,-231.39085002,0.00017786,2]
[407713866,1772699441710,-166.66,0.00017806,2]
[407713867,1772699441721,-370.69943514,0.00017819,2]
[407713868,1772699441730,-500.0,0.00017819,2]
[407713869,1772699441740,-500.0,0.00017819,2]
[407713870,1772699441751,-500.0,0.00017819,2]
[407713871,1772699441762,-500.0,0.00017819,2]
[407713872,1772699441773,-1256.33,0.00017819,2]
[407713873,1772699441783,-1680.0,0.00017851,2]
[407713874,1772699441794,-156.87,0.0001787,2]
[407713875,1772699441804,-456.73395371,0.00017962,2]
[407713876,1772699441814,-5152.05384741,0.0001804,2]
[407713877,1772699441825,-500.0,0.00018061,2]
[407713878,1772699441836,-500.0,0.00018061,2]
[407713879,1772699441847,-500.0,0.00018061,2]
[407713880,1772699441857,-500.0,0.00018061,2]
[407713881,1772699441867,-500.0,0.00018061,2]
[407713882,1772699441879,-500.0,0.00018061,2]
[407713883,1772699441890,-300.0,0.00018061,2]
[407713884,1772699441899,-300.0,0.00018061,2]
[407713885,1772699441909,-98903.0899486,0.00018062,2]
[407713886,1772699441919,-24227.8552946,0.00018062,2]
[407713887,1772699441929,-156.87,0.0001814,2]
[407713888,1772699441941,-1633.62165765,0.00018229,2]
[407713889,1772699441951,-246.54770135,0.00018234,3]
[407713890,1772699441960,-890.26,0.00018292,2]
[407713891,1772699441970,-200.0,0.00018334,2]
[407713892,1772699441979,-166.66,0.00018357,2]
[407713893,1772699441998,-272.27027628,0.00018393,2]
[407713894,1772699442008,-156.87,0.0001841,2]
[407713895,1772699442018,-304.08,0.00018531,2]
[407713896,1772699442029,-272.27027628,0.00018575,2]
[407713897,1772699442041,-156.87,0.0001868,2]
[407713898,1772699442052,-272.27027628,0.00018757,2]
[407713899,1772699442062,-189.1597078,0.0001879,2]
[407713900,1772699442071,-165.0,0.00018825,2]
[407713901,1772699442081,-200.0,0.00018882,2]
[407713902,1772699442091,-166.66,0.00018909,2]
[407713903,1772699442100,-156.87,0.0001895,2]
[407713904,1772699442110,-150.0,0.00018975,2]
[407713905,1772699442120,-288.924676,0.00018977,2]
[407713906,1772699442129,-1048.72730714,0.00019,2]
[407713907,1772699442139,-890.26,0.00019087,2]
[407713908,1772699442149,-1000.0,0.00019178,2]
[407713909,1772699442158,-156.87,0.0001922,2]
[407713910,1772699442168,-200.0,0.0001943,2]
[407713911,1772699442177,-166.66,0.0001946,2]
[407713912,1772699442187,-156.87,0.0001949,2]
[407713913,1772699442197,-2337.0,0.0001961,2]
[407713914,1772699442208,-505.0,0.00019739,7]
[407713915,1772699442219,-156.87,0.0001976,2]
[407713916,1772699442229,-1158.4890981,0.00019922,2]
[407713917,1772699442238,-4740.89154135,0.00019922,2]
[407713918,1772699442247,-200.0,0.00019978,2]
[407713919,1772699442257,-300.0,0.00019998,2]
[407713920,1772699442267,-582.28,0.00019999,2]
[407713921,1772699442277,-582.28,0.00019999,2]
[407713922,1772699442287,-582.28,0.00019999,2]
[407713923,1772699442296,-582.28,0.00019999,2]
[407713924,1772699442306,-582.28,0.00019999,2]
[407713925,1772699442316,-582.28,0.00019999,2]
[407713926,1772699442326,-582.28,0.00019999,2]
[407713927,1772699442335,-500.0,0.00019999,2]
[407713928,1772699442344,-500.0,0.00019999,2]
[407713929,1772699442354,-500.0,0.00019999,2]
[407713930,1772699442367,-500.0,0.00019999,2]
[407713931,1772699442377,-500.0,0.00019999,2]
[407713932,1772699442387,-500.0,0.00019999,2]
[407713933,1772699442396,-500.0,0.00019999,2]
[407713934,1772699442406,-150.0,0.0002,20]
[407713935,1772699442416,-1000.0,0.0002,7]
[407713936,1772699442425,-5575.64,0.0002,30]
[407713937,1772699442435,-156.87,0.0002003,2]
[407713938,1772699442445,-156.87,0.000203,2]
[407713939,1772699442455,-202.72622012,0.00020526,2]
[407713940,1772699442464,-156.87,0.0002057,2]
[407713941,1772699442475,-481.83,0.00020626,2]
[407713942,1772699442484,-156.87,0.0002084,2]
[407713943,1772699442493,-287.37049951,0.0002087,2]
[407713944,1772699442503,-481.83,0.000209,2]
[407713945,1772699442513,-156.87,0.0002111,2]
[407713946,1772699442522,-481.83,0.00021174,2]
[407713947,1772699442532,-156.87,0.0002138,2]
[407713948,1772699442542,-481.83,0.00021448,2]
[407713949,1772699442552,-156.87,0.0002165,2]
[407713950,1772699442562,-481.84,0.00021722,2]
[407713951,1772699442571,-300.0,0.00021811,2]
[407713952,1772699442581,-22068.2622994,0.00021812,2]
[407713953,1772699442591,-188.110575,0.00021822,2]
[407713954,1772699442600,-667.7,0.00021918,2]
[407713955,1772699442610,-667.7,0.00021918,2]
[407713956,1772699442619,-156.87,0.0002192,2]
[407713957,1772699442629,-5405.9652319,0.00021934,2]
[407713958,1772699442639,-7217.57,0.00022,30]
[407713959,1772699442649,-667.7,0.00022037,2]
[407713960,1772699442659,-156.87,0.0002219,2]
[407713961,1772699442668,-667.7,0.00022316,2]
[407713962,1772699442678,-156.87,0.0002246,2]
[407713963,1772699442687,-578.19217107,0.00022493,2]
[407713964,1772699442697,-667.7,0.00022595,2]
[407713965,1772699442707,-505.0,0.00022609,9]
[407713966,1772699442717,-4924.094901,0.00022648,2]
[407713967,1772699442727,-156.87,0.0002273,2]
[407713968,1772699442738,-1206.2338879,0.00022799,2]
[407713969,1772699442752,-667.7,0.00022874,2]
[407713970,1772699442762,-156.96,0.00023,2]
[407713985,1772699443114,-160.0,0.00023,2]
[407713986,1772699443124,-667.7,0.00023153,2]
[407713987,1772699443133,-1158.4890981,0.00023241,2]
[407713988,1772699443143,-4740.89154135,0.00023241,2]
[407713989,1772699443152,-1500.0,0.00023288,2]
[407713990,1772699443161,-667.7,0.00023432,2]
[407713991,1772699443170,-667.7,0.00023711,2]
[407713992,1772699443180,-180.29897544,0.00023799,2]
[407713993,1772699443190,-667.7,0.0002399,2]
[407713994,1772699443199,-667.7,0.00024269,2]
[407713995,1772699443208,-401.08765376,0.00024285,2]
[407713996,1772699443218,-667.7,0.00024548,2]
[407713997,1772699443228,-667.7,0.00024548,2]
[407713998,1772699443237,-335.07156589,0.0002463,2]
[407713999,1772699443247,-2017.87050745,0.00024657,2]
[407714000,1772699443257,-1000.0,0.00024658,2]
[407714001,1772699443266,-150.0,0.00024658,2]
[407714002,1772699443275,-300.0,0.00024799,10]
[407714003,1772699443285,-611.68679181,0.0002489,2]
[407714004,1772699443294,-151.0,0.00024897,7]
[407714005,1772699443303,-151.0,0.00024897,7]
[407714006,1772699443313,-300.0,0.00024898,10]
[407714007,1772699443323,-500.0,0.00024899,2]
[407714008,1772699443332,-500.0,0.00024899,2]
[407714009,1772699443341,-500.0,0.00024899,2]
[407714010,1772699443351,-500.0,0.00024899,2]
[407714011,1772699443360,-582.28,0.00024899,2]
[407714012,1772699443369,-500.0,0.00024899,2]
[407714013,1772699443378,-500.0,0.00024899,2]
[407714014,1772699443389,-500.0,0.00024899,2]
[407714015,1772699443398,-500.0,0.00024899,2]
[407714016,1772699443410,-349.92362241,0.00024899,2]
[407714017,1772699443423,-512.19785893,0.00024899,2]
[407714018,1772699443433,-300.0,0.00024899,10]
[407714019,1772699443442,-5000.0,0.000249,2]
[407714020,1772699443451,-5000.0,0.000249,2]
[407714021,1772699443461,-3679.175262,0.000249,2]
[407714022,1772699443470,-601614.383581,0.000249,2]
[407714024,1772699443479,-9307.30429407,0.00025038,2]
[407714026,1772699443488,-250.98805618,0.00025038,2]
[407714027,1772699443498,-287.37049951,0.00025138,2]
[407714028,1772699443507,-882.405446,0.00025379,2]
[407714029,1772699443516,-505.0,0.00025478,12]
[407714030,1772699443525,-500.0,0.00025869,2]
[407714031,1772699443535,-150.0,0.0002589,2]
[407714032,1772699443544,-1158.4890981,0.0002656,2]
[407714034,1772699443555,-4740.89154135,0.0002656,2]
[407714035,1772699443564,-160.0,0.00027,3]
[407714036,1772699443573,-3703.9,0.00027123,2]
[407714037,1772699443583,-305.94,0.00027171,14]
[407714038,1772699443592,-150.0,0.00027185,2]
[407714039,1772699443601,-272.27027628,0.00027316,2]
[407714040,1772699443610,-150.0,0.00027369,2]
[407714041,1772699443619,-150.0,0.00027369,2]
[407714042,1772699443629,-155.0,0.00027389,2]
[407714043,1772699443638,-271.41758831,0.00027397,2]
[407714044,1772699443648,-7896.78,0.00027397,10]
[407714045,1772699443657,-500.0,0.00027397,5]
[407714046,1772699443667,-454.71,0.000274,7]
[407714047,1772699443677,-250.21,0.000274,7]
[407714048,1772699443688,-664.19695175,0.00027608,17]
[407714049,1772699443698,-667.7,0.00027616,2]
[407714050,1772699443708,-160.0,0.0002783,30]
[407714051,1772699443717,-505.0,0.00028348,14]
[407714052,1772699443727,-578.19217107,0.00028489,2]
[407714053,1772699443737,-151.0,0.00028514,2]
[407714054,1772699443746,-500.0,0.00028514,2]
[407714055,1772699443756,-500.0,0.00028514,2]
[407714056,1772699443766,-151.0,0.00028514,2]
[407714057,1772699443775,-500.0,0.00028514,2]
[407714058,1772699443784,-151.0,0.00028514,2]
[407714059,1772699443793,-500.0,0.00028514,2]
[407714060,1772699443806,-151.0,0.00028514,2]
[407714061,1772699443815,-500.0,0.00028514,2]
[407714062,1772699443825,-151.0,0.00028514,2]
[407714063,1772699443835,-364.0000458,0.00028514,2]
[407714064,1772699443844,-151.0,0.00028514,2]
[407714065,1772699443853,-151.0,0.00028514,2]
[407714066,1772699443863,-721.12765535,0.00028514,2]
[407714067,1772699443874,-151.0,0.00028514,2]
[407714068,1772699443883,-151.0,0.00028514,2]
[407714069,1772699443893,-151.0,0.00028514,2]
[407714070,1772699443903,-151.0,0.00028514,2]
[407714071,1772699443912,-250.0,0.00028514,2]
[407714072,1772699443922,-300.0,0.00028514,2]
[407714073,1772699443931,-151.0,0.00028514,2]
[407714074,1772699443941,-250.0,0.00028514,2]
[407714075,1772699443951,-300.0,0.00028514,2]
[407714076,1772699443961,-300.0,0.00028514,2]
[407714077,1772699443971,-250.0,0.00028514,2]
[407714078,1772699443980,-250.0,0.00028514,2]
[407714079,1772699443989,-300.0,0.00028514,2]
[407714080,1772699443999,-250.0,0.00028514,2]
[407714081,1772699444009,-250.0,0.00028514,2]
[407714082,1772699444020,-300.0,0.00028514,2]
[407714083,1772699444029,-250.0,0.00028514,2]
[407714084,1772699444039,-250.0,0.00028514,2]
[407714085,1772699444048,-300.0,0.00028514,2]
[407714086,1772699444057,-250.0,0.00028514,2]
[407714087,1772699444067,-250.0,0.00028514,2]
[407714088,1772699444077,-300.0,0.00028514,2]
[407714089,1772699444087,-250.0,0.00028514,2]
[407714090,1772699444096,-300.0,0.00028514,2]
[407714091,1772699444107,-250.0,0.00028514,2]
[407714092,1772699444119,-250.0,0.00028514,2]
[407714093,1772699444129,-305.95163096,0.00028514,2]
[407714094,1772699444139,-250.0,0.00028514,2]
[407714095,1772699444150,-250.0,0.00028514,2]
[407714096,1772699444160,-250.0,0.00028514,2]
[407714097,1772699444170,-250.0,0.00028514,2]
[407714098,1772699444180,-174.61919141,0.00028514,2]
[407714099,1772699444190,-250.0,0.00028514,2]
[407714100,1772699444200,-250.0,0.00028514,2]
[407714101,1772699444210,-270.94567741,0.00028514,2]
[407714102,1772699444222,-578.20924308,0.00028514,2]
[407714103,1772699444231,-250.0,0.00028514,2]
[407714104,1772699444240,-209.40437684,0.00028514,2]
[407714105,1772699444251,-693.3919763,0.00028514,2]
[407714106,1772699444262,-500.0,0.00028514,2]
[407714107,1772699444272,-500.0,0.00028514,2]
[407714108,1772699444283,-500.0,0.00028514,2]
[407714109,1772699444294,-500.0,0.00028514,2]
[407714110,1772699444304,-500.0,0.00028514,2]
[407714111,1772699444314,-250.0,0.00028514,2]
[407714112,1772699444325,-500.0,0.00028514,2]
[407714113,1772699444334,-500.0,0.00028514,2]
[407714114,1772699444344,-250.0,0.00028514,2]
[407714115,1772699444354,-500.0,0.00028514,2]
[407714116,1772699444365,-500.0,0.00028514,2]
[407714117,1772699444378,-250.0,0.00028514,2]
[407714118,1772699444388,-500.0,0.00028514,2]
[407714119,1772699444399,-500.0,0.00028514,2]
[407714120,1772699444410,-250.0,0.00028514,2]
[407714121,1772699444419,-500.0,0.00028514,2]
[407714122,1772699444431,-500.0,0.00028514,2]
[407714123,1772699444440,-500.0,0.00028514,2]
[407714124,1772699444451,-250.0,0.00028514,2]
[407714125,1772699444463,-500.0,0.00028514,2]
[407714126,1772699444473,-500.0,0.00028514,2]
[407714127,1772699444482,-250.0,0.00028514,2]
[407714128,1772699444492,-500.0,0.00028514,2]
[407714129,1772699444502,-500.0,0.00028514,2]
[407714130,1772699444511,-250.0,0.00028514,2]
[407714131,1772699444523,-209.40437684,0.00028514,2]
[407714132,1772699444533,-500.0,0.00028514,2]
[407714133,1772699444543,-250.0,0.00028514,2]
[407714134,1772699444554,-500.0,0.00028514,2]
[407714135,1772699444563,-250.0,0.00028514,2]
[407714136,1772699444572,-693.3919763,0.00028514,2]
[407714137,1772699444582,-151.0,0.00028514,2]
[407714138,1772699444591,-1428.38747117,0.00028514,2]
[407714139,1772699444600,-250.0,0.00028514,2]
[407714140,1772699444609,-250.0,0.00028514,2]
[407714141,1772699444619,-250.0,0.00028514,2]
[407714142,1772699444628,-262.90206542,0.00028514,2]
[407714143,1772699444637,-250.0,0.00028514,2]
[407714144,1772699444647,-250.0,0.00028514,2]
[407714145,1772699444656,-250.0,0.00028514,2]
[407714146,1772699444665,-250.0,0.00028514,2]
[407714147,1772699444674,-250.0,0.00028514,2]
[407714148,1772699444683,-250.0,0.00028514,2]
[407714149,1772699444692,-209.40437684,0.00028514,2]
[407714150,1772699444701,-269.917619,0.00028514,2]
[407714151,1772699444711,-743.50770149,0.00028514,2]
[407714152,1772699444720,-150.0,0.00028544,2]
[407714153,1772699444729,-500.0,0.00028568,2]
[407714154,1772699444739,-719.04747942,0.00028569,2]
[407714155,1772699444748,-151.0,0.00028569,2]
[407714156,1772699444757,-745.65223616,0.00028624,2]
[407714157,1772699444767,-151.0,0.00028624,2]
[407714158,1772699444776,-313.54094244,0.0002867,19]
[407714159,1772699444784,-773.2413689,0.00028679,2]
[407714160,1772699444793,-151.0,0.00028679,2]
[407714161,1772699444803,-1353.3,0.00028691,2]
[407714162,1772699444812,-801.85129955,0.00028734,2]
[407714163,1772699444821,-151.0,0.00028734,2]
[407714164,1772699444830,-504.98178023,0.00028767,5]
[407714165,1772699444840,-160.0,0.00028788,2]
[407714166,1772699444849,-172.70211477,0.00028788,2]
[407714167,1772699444858,-831.51979763,0.00028789,2]
[407714168,1772699444868,-151.0,0.00028789,2]
[407714169,1772699444881,-862.28603014,0.00028844,2]
[407714170,1772699444891,-151.0,0.00028844,2]
[407714171,1772699444901,-894.19061326,0.00028899,2]
[407714172,1772699444910,-151.0,0.00028899,2]
[407714173,1772699444920,-927.27566595,0.00028954,2]
[407714174,1772699444929,-151.0,0.00028954,2]
[407714175,1772699444939,-961.58486559,0.00029009,2]
[407714176,1772699444950,-151.0,0.00029009,2]
[407714177,1772699444960,-181.08010149,0.00029062,2]
[407714178,1772699444969,-217.15233878,0.00029062,2]
[407714179,1772699444979,-188.04392138,0.00029062,2]
[407714180,1772699444988,-217.15233878,0.00029062,2]
[407714181,1772699444997,-1481.23780761,0.00029062,2]
[407714182,1772699445007,-272.62944185,0.00029062,2]
[407714183,1772699445016,-217.15233878,0.00029062,2]
[407714184,1772699445026,-232.082381,0.00029062,2]
[407714185,1772699445035,-771.01748645,0.00029062,2]
[407714186,1772699445044,-997.16350561,0.00029064,2]
[407714187,1772699445053,-1117.62,0.00029086,2]
[407714188,1772699445063,-500.0,0.00029107,120]
[407714189,1772699445072,-500.0,0.00029107,120]
[407714190,1772699445081,-381.71920462,0.00029107,45]
[407714191,1772699445090,-287.37049951,0.00029405,2]
[407714192,1772699445099,-187.78006525,0.0002961,2]
[407714193,1772699445109,-205.79172238,0.0002961,2]
[407714194,1772699445119,-225.18697532,0.0002961,2]
[407714195,1772699445129,-282.71673119,0.0002961,2]
[407714196,1772699445138,-225.18697532,0.0002961,2]
[407714197,1772699445148,-799.54513345,0.0002961,2]
[407714198,1772699445157,-161.0,0.000298,2]
[407714199,1772699445166,-582.28,0.00029801,120]
[407714200,1772699445176,-582.28,0.00029801,120]
[407714201,1772699445185,-582.28,0.00029801,120]
[407714202,1772699445195,-582.28,0.00029801,120]
[407714203,1772699445204,-582.45624358,0.00029801,120]
[407714204,1772699445214,-500.0,0.00029801,120]
[407714205,1772699445224,-551.6181156,0.00029801,120]
[407714206,1772699445234,-1689.33,0.00029815,2]
[407714207,1772699445244,-9999.99,0.00029815,2]
[407714208,1772699445254,-706.91,0.00029815,2]
[407714209,1772699445267,-299.99,0.00029815,12]
[407714210,1772699445277,-150.99,0.00029815,2]
[407714211,1772699445289,-999.99,0.00029815,2]
[407714212,1772699445300,-9999.99,0.00029815,2]
[407714213,1772699445310,-1158.4890981,0.00029879,2]
[407714214,1772699445322,-4740.89154135,0.00029879,2]
[407714215,1772699445333,-150.0,0.00029971,2]
[407714216,1772699445347,-454.71,0.0003,7]
[407714217,1772699445359,-160.0,0.0003,120]
[407714218,1772699445369,-1000.0,0.0003,7]
[407714219,1772699445379,-854.43,0.00030137,30]
[407714220,1772699445390,-194.72792766,0.00030158,2]
[407714221,1772699445402,-233.51889341,0.00030158,2]
[407714222,1772699445412,-293.17725025,0.00030158,2]
[407714223,1772699445423,-335.85121649,0.00030158,2]
[407714224,1772699445433,-829.12830338,0.00030158,2]
[407714225,1772699445443,-250.21,0.000304,7]
[407714226,1772699445453,-667.7,0.00030685,2]
[407714227,1772699445464,-667.7,0.00030685,2]
[407714228,1772699445476,-201.93286099,0.00030706,2]
[407714229,1772699445486,-242.15909246,0.00030706,2]
[407714230,1772699445496,-304.02480851,0.00030706,2]
[407714231,1772699445506,-169.26564495,0.00030706,2]
[407714232,1772699445516,-1353.3,0.0003071,2]
[407714233,1772699445527,-505.0,0.00031217,17]
[407714234,1772699445537,-747.8093786,0.00031253,2]
[407714235,1772699445548,-599.60298507,0.00031253,2]
[407714236,1772699445558,-209.40437684,0.00031254,2]
[407714237,1772699445568,-251.11897888,0.00031254,2]
[407714238,1772699445578,-315.27372642,0.00031254,2]
[407714239,1772699445588,-150.0,0.0003147,2]
[407714240,1772699445599,-525.17966754,0.00031539,2]
[407714241,1772699445609,-217.15233878,0.00031802,2]
[407714242,1772699445619,-329.20125207,0.00031802,2]
[407714243,1772699445628,-273.73306581,0.00031802,2]
[407714244,1772699445638,-161.0,0.00032,5]
[407714245,1772699445648,-1029.86,0.00032,120]
[407714246,1772699445658,-225.18697532,0.0003235,2]
[407714247,1772699445667,-1029.86,0.000324,120]
[407714248,1772699445676,-150.0,0.00032547,120]
[407714249,1772699445686,-198.39220351,0.00032547,120]
[407714250,1772699445696,-2000.0,0.000326,2]
[407714251,1772699445705,-1353.3,0.00032729,2]
[407714252,1772699445715,-1029.86,0.000328,120]
[407714253,1772699445724,-161.23202507,0.00032898,2]
[407714254,1772699445735,-454.71,0.000329,14]
[407714255,1772699445744,-545.280214,0.00033,8]
[407714256,1772699445754,-150.0,0.00033043,2]
[407714257,1772699445763,-854.43,0.00033072,30]
[407714258,1772699445772,-1158.4890981,0.00033199,2]
[407714259,1772699445782,-4740.89154135,0.00033199,2]
[407714260,1772699445793,-1029.86,0.000332,120]
[407714261,1772699445803,-1029.86,0.000336,120]
[407714262,1772699445813,-580.65367252,0.00033654,120]
[407714263,1772699445823,-287.37049951,0.00033673,2]
[407714264,1772699445832,-775.47832561,0.00033992,2]
[407714265,1772699445841,-621.78829552,0.00033992,2]
[407714267,1772699445851,-1029.86,0.00034,120]
[407714268,1772699445860,-505.0,0.00034087,19]
[407714270,1772699445870,-1029.86,0.000344,120]
[407714272,1772699445881,-578.19217107,0.00034484,2]
[407714274,1772699445890,-150.0,0.00034696,2]
[407714275,1772699445899,-1353.3,0.00034748,2]
[407714276,1772699445908,-1066.03677286,0.00034795,2]
[407714277,1772699445918,-1029.86,0.000348,120]
[407714278,1772699445927,-158.0,0.00034973,30]
[407714279,1772699445937,-200.0,0.00035,3]
[407714280,1772699445946,-1029.86,0.000352,120]
[407714281,1772699445955,-277.0,0.00035304,30]
[407714282,1772699445965,-652.0,0.00035338,2]
[407714283,1772699445974,-200.0,0.00035338,2]
[407714284,1772699445983,-200.0,0.00035338,2]
[407714285,1772699445993,-200.0,0.00035338,2]
[407714286,1772699446002,-200.0,0.00035338,2]
[407714287,1772699446011,-200.0,0.00035338,2]
[407714288,1772699446025,-319.0,0.00035338,2]
[407714289,1772699446034,-335.07156588,0.00035589,120]
[407714290,1772699446044,-1029.86,0.000356,120]
[407714291,1772699446054,-749.79081774,0.00035616,120]
[407714292,1772699446063,-1000.0,0.00035616,120]
[407714293,1772699446072,-1000.0,0.00035616,10]
[407714294,1772699446081,-1000.0,0.00035616,10]
[407714295,1772699446091,-1000.0,0.00035616,10]
[407714296,1772699446100,-1000.0,0.00035616,10]
[407714297,1772699446109,-1000.0,0.00035616,10]
[407714298,1772699446119,-1000.0,0.00035616,10]
[407714299,1772699446127,-1000.0,0.00035616,10]
[407714300,1772699446137,-1000.0,0.00035616,10]
[407714301,1772699446146,-1000.0,0.00035616,10]